bitfinex/quotes_ETHUSD_20250804
["timestamp","ask_amount","ask_price","bid_price","bid_amount"]
[1754315010984,3.90937305,3602.6,3602.5,7.0]
[1754315011478,2.83489353,3603.8,3602.5,7.0]
[1754315011773,3.0,3603.6,3602.5,7.0]
[1754315011960,1.1744,3603.5,3602.8,2.77556664]
[1754315012161,1.1744,3603.5,3602.9,2.77552051]
[1754315012360,1.1744,3603.5,3602.8,2.7755984]
[1754315012715,2.77515679,3603.4,3602.6,2.77577305]
[1754315012865,0.02833763,3603.3,3602.5,7.0]
[1754315013065,1.1744,3603.3,3602.5,7.0]
[1754315013388,0.1384,3602.8,3602.5,7.0]
[1754315013760,0.1384,3602.8,3602.5,2.77578604]
[1754315013967,0.1384,3602.9,3602.6,0.4619]
[1754315014373,2.77552726,3603.0,3602.4,4.652]
[1754315014580,0.1384,3602.7,3602.4,4.652]
[1754315014976,0.1384,3602.7,3602.5,0.4619]
[1754315015175,0.1384,3602.7,3602.5,3.23773396]
[1754315015374,0.1384,3602.7,3602.6,0.4619]
[1754315015589,0.1384,3602.9,3602.6,0.4619]
[1754315016099,0.1384,3602.9,3602.7,0.4619]
[1754315016600,2.77571824,3602.7,3602.3,0.002]
[1754315016898,0.1384,3602.5,3602.3,0.002]
[1754315017706,1.3128,3602.5,3602.3,0.002]
[1754315017908,3.95032715,3602.4,3602.3,0.002]
[1754315018322,3.97866478,3602.4,3602.3,0.002]
[1754315018527,3.95032715,3602.4,3602.3,0.002]
[1754315018693,0.1384,3602.5,3602.3,0.002]
[1754315019623,3.95032715,3602.4,3602.3,0.002]
[1754315021227,2.77592715,3602.4,3602.3,0.002]
[1754315021401,3.95032715,3602.4,3602.3,0.002]
[1754315022197,4.50032715,3602.4,3602.3,0.002]
[1754315022400,7.50032715,3602.4,3602.3,0.002]
[1754315022716,37.50032715,3602.4,3602.3,0.002]
[1754315022930,37.50032715,3602.4,3602.3,1e-08]
[1754315023709,7.08872715,3602.4,3602.3,1e-08]
[1754315024031,12.28872715,3602.4,3602.3,1e-08]
[1754315024190,7.63872715,3602.4,3602.3,1e-08]
[1754315024496,41.73872715,3602.4,3602.3,1e-08]
[1754315024697,42.28872715,3602.4,3602.3,1e-08]
[1754315025023,42.15032715,3602.4,3602.3,1e-08]
[1754315025524,37.50032715,3602.4,3602.3,1e-08]
[1754315025822,2.776475,3601.7,3601.1,0.45962703]
[1754315026024,2.77670822,3601.4,3600.7,2.77717859]
[1754315026210,2.77664484,3601.5,3600.7,2.77717859]
[1754315026389,2.77670275,3601.4,3600.7,2.77721539]
[1754315026592,2.77670275,3601.4,3600.8,2.77715974]
[1754315026792,1.1744,3601.3,3600.6,4.02205854]
[1754315027188,4.65,3601.2,3600.0,0.21347113]
[1754315027402,1.20273763,3601.1,3599.4,1.1464]
[1754315027607,2.77738298,3600.6,3599.4,1.1464]
[1754315027808,7.42736886,3600.6,3599.4,1.1464]
[1754315028013,7.42736886,3600.6,3599.8,2.7779321]
[1754315028220,7.42732161,3600.6,3600.0,2.77777029]
[1754315028400,7.42732161,3600.6,3599.9,2.77783844]
[1754315028721,4.65,3600.5,3600.0,3.2396703]
[1754315028908,5.8244,3600.5,3599.3,0.4619]
[1754315029124,1.1744,3600.5,3599.3,0.4619]
[1754315029327,3.0,3601.3,3599.4,3.92463865]
[1754315029512,3.0,3601.3,3599.3,0.4619]
[1754315029513,2.77761994,3600.3,3599.3,0.4619]
[1754315029834,2.77762646,3600.2,3599.3,3.24020006]
[1754315030135,4.65,3600.3,3599.4,2.77818621]
[1754315030439,7.42755535,3600.3,3599.6,2.77808407]
[1754315030734,1.1744,3600.7,3599.6,2.77808407]
[1754315030735,0.20603753,3601.3,3599.7,1.6083]
[1754315030938,2.77586691,3602.5,3599.6,3.0]
[1754315030939,1.20273763,3601.8,3600.5,2.77736661]
[1754315031249,1.20273763,3601.8,3599.8,1.63607932]
[1754315031250,4.651,3601.7,3600.6,1.6083]
[1754315031398,2.77660008,3601.6,3600.6,0.4619]
[1754315031600,2.77694075,3601.1,3600.6,0.4619]
[1754315031841,1.1744,3601.5,3600.6,0.4619]
[1754315032001,3.9793872,3601.5,3600.6,0.4619]
[1754315032201,2.77723775,3600.7,3600.6,0.4619]
[1754315032397,2.77742479,3600.5,3600.0,0.4619]
[1754315032602,2.77742479,3600.5,3599.6,3.0]
[1754315032797,2.77703306,3601.0,3599.7,1.6083]
[1754315033024,2.77703306,3601.0,3599.6,2.7780348]
[1754315033224,4.651,3600.9,3598.9,4.651]
[1754315033410,2.77769106,3600.2,3599.6,0.4619]
[1754315033904,5.8244,3600.1,3599.4,0.002]
[1754315034116,2.77816363,3599.5,3599.4,0.002]
[1754315034812,3.95256363,3599.5,3599.4,0.002]
[1754315035016,4.12010126,3599.5,3599.4,0.002]
[1754315035216,34.12230126,3599.5,3599.4,0.002]
[1754315035453,2.77908193,3598.4,3597.7,0.4619]
[1754315035664,0.1392,3598.2,3597.7,0.1392]
[1754315035833,0.1392,3598.2,3597.8,0.4619]
[1754315036456,7.42995713,3598.5,3597.7,2.77953493]
[1754315036641,0.1392,3597.9,3597.2,2.77986651]
[1754315036854,0.02833763,3597.8,3597.2,0.1392]
[1754315037134,2.77934769,3598.0,3597.0,5.94945074]
[1754315037300,0.1392,3597.5,3597.0,2.84666122]
[1754315037701,2.77963985,3597.6,3597.0,2.84666122]
[1754315037702,1.1744,3598.5,3597.1,1.6083]
[1754315037928,0.1392,3597.5,3597.4,2.7797854]
[1754315038136,1.1744,3598.5,3597.6,2.77963086]
[1754315038137,0.1392,3597.7,3597.6,2.77963086]
[1754315038338,0.1392,3597.7,3597.6,0.4619]
[1754315038639,0.1392,3597.7,3597.2,2.77988379]
[1754315038840,0.1392,3597.5,3597.2,0.4619]
[1754315039043,0.1392,3597.3,3597.0,2.70746122]
[1754315039255,0.1392,3597.3,3597.2,2.77993995]
[1754315039434,4.651,3598.0,3597.1,10.92641719]
[1754315039606,0.1392,3597.6,3597.3,2.77979793]
[1754315039806,3.0,3598.7,3597.1,11.52751719]
[1754315039807,0.02833763,3598.3,3597.2,0.4619]
[1754315040050,4.651,3598.3,3597.7,2.77949444]
[1754315040250,4.651,3598.3,3597.3,1.2856]
[1754315040251,0.1392,3597.9,3597.8,2.77945714]
[1754315040619,0.1392,3597.9,3597.8,3.24135714]
[1754315041135,0.1392,3597.9,3597.8,4.38775714]
[1754315042306,1.18743763,3599.2,3598.6,2.77885086]
[1754315042507,5.486009,3599.4,3598.5,0.4554]
[1754315042747,0.1392,3598.6,3598.3,2.7790286]
[1754315042952,0.1392,3598.6,3598.1,2.91840258]
[1754315043152,0.1392,3598.6,3598.0,0.4554]
[1754315043153,0.1392,3598.2,3597.8,7.43147447]
[1754315043353,0.1392,3598.2,3597.9,2.7793822]
[1754315043575,3.93804484,3598.5,3597.9,2.7793822]
[1754315043750,0.1392,3598.0,3597.9,3.2347822]
[1754315044161,1.1591,3599.3,3598.4,2.77893871]
[1754315044360,1.1591,3599.3,3597.9,1.5619]
[1754315044361,4.652,3599.1,3598.5,2.77892494]
[1754315044566,1.1591,3599.3,3597.9,1.2457]
[1754315044567,0.1392,3598.5,3598.4,2.77901289]
[1754315044787,1.1591,3599.3,3598.8,2.77863386]
[1754315044960,1.1591,3599.3,3598.8,0.4554]
[1754315045282,0.1392,3598.9,3598.8,3.23409924]
[1754315045458,3.0,3599.9,3598.8,0.4554]
[1754315045664,0.1392,3599.3,3599.2,2.77839519]
[1754315045861,0.1392,3599.3,3599.2,3.23379519]
[1754315046062,1.1591,3600.2,3599.8,2.77788176]
[1754315046277,1.1591,3600.2,3599.2,1.5619]
[1754315046278,7.42847814,3600.4,3599.7,2.77798659]
[1754315046487,0.1392,3599.7,3599.6,2.77808645]
[1754315046892,0.1392,3599.7,3599.6,3.23348645]
[1754315047806,0.1392,3599.7,3599.4,2.77818415]
[1754315047977,0.1392,3599.7,3599.5,2.77813294]
[1754315048182,1.2983,3599.7,3599.2,0.1392]
[1754315048388,1.1591,3599.6,3598.9,4.651]
[1754315048592,0.1392,3599.1,3598.9,7.42962223]
[1754315048817,0.1392,3599.1,3598.7,2.7787227]
[1754315049018,0.1392,3599.1,3598.5,0.1392]
[1754315049174,0.1392,3599.1,3598.7,0.4554]
[1754315049522,0.1392,3598.6,3598.1,3.23461972]
[1754315049809,0.1392,3598.6,3598.4,2.77900517]
[1754315049971,0.1392,3598.3,3598.2,0.4554]
[1754315050172,0.1392,3598.3,3598.2,4.34106736]
[1754315050801,0.1392,3598.3,3598.2,10.23456736]
[1754315050983,2.77855987,3599.0,3598.3,2.77903693]
[1754315051190,0.1392,3598.4,3598.3,2.77903693]
[1754315051389,0.1392,3598.4,3598.3,3.23443693]
[1754315051598,0.1392,3598.7,3598.3,1.5619]
[1754315051776,1.1591,3599.6,3598.4,2.77901289]
[1754315052105,1.1591,3599.6,3599.2,2.77838915]
[1754315052415,0.1392,3599.3,3599.2,3.2337432]
[1754315053914,0.1392,3599.3,3599.2,4.3402432]
[1754315054338,5.8091,3600.8,3599.8,2.77786035]
[1754315054498,0.1392,3600.0,3599.6,5.1054]
[1754315054684,0.1392,3600.0,3599.9,2.77785494]
[1754315055251,0.1392,3600.0,3599.9,3.23325494]
[1754315055588,0.1392,3600.0,3599.9,0.4554]
[1754315055785,0.1392,3600.0,3599.9,3.23325494]
[1754315056036,0.1392,3600.6,3600.3,2.77749014]
[1754315056238,2.77718487,3600.8,3600.1,4.649]
[1754315056385,0.1392,3600.2,3600.1,4.649]
[1754315056583,0.1392,3600.2,3600.1,7.88207351]
[1754315056780,1.1591,3601.1,3600.1,7.88207351]
[1754315056781,0.1392,3600.3,3600.2,2.77760694]
[1754315057092,0.1392,3600.3,3600.2,3.23300694]
[1754315057287,0.1392,3600.3,3600.2,0.4554]
[1754315057507,0.1392,3600.3,3600.2,3.23302346]
[1754315057823,0.0892,3600.3,3600.1,7.42667722]
[1754315057983,0.0892,3600.3,3600.1,4.649]
[1754315058208,0.0892,3600.3,3600.1,7.42669374]
[1754315058410,2.77673211,3601.4,3600.1,7.42669374]
[1754315058411,3.0,3601.8,3600.2,1.5619]
[1754315058600,1.1591,3601.6,3600.3,1.5619]
[1754315058801,0.1392,3601.3,3601.2,2.77685216]
[1754315059019,0.06,3601.9,3601.2,0.4554]
[1754315059220,0.1392,3601.4,3601.3,2.77674666]
[1754315059400,0.06,3601.9,3601.3,0.4554]
[1754315059582,0.06,3601.9,3601.3,3.2321541]
[1754315059583,0.1392,3601.5,3601.3,3.2321541]
[1754315059787,0.1392,3601.5,3601.4,3.23209795]
[1754315060310,0.06,3601.9,3601.4,3.23209795]
[1754315060512,0.1392,3601.6,3601.4,0.4554]
[1754315061019,0.1392,3601.6,3601.5,2.77662085]
[1754315061195,0.1392,3601.6,3601.4,0.4554]
[1754315061819,0.1392,3601.6,3601.4,3.23208592]
[1754315062124,1.2983,3601.6,3601.2,11.647]
[1754315062325,0.1392,3601.4,3601.2,11.647]
[1754315062925,0.1392,3601.4,3601.3,0.4554]
[1754315063236,0.06,3601.9,3601.8,2.77638958]
[1754315063441,0.06,3601.9,3601.8,8.98428958]
[1754315063734,0.06,3601.9,3601.8,9.12348958]
[1754315063934,0.061,3602.3,3602.2,2.77608128]
[1754315064233,0.061,3602.3,3602.2,7.42208128]
[1754315064401,0.061,3602.3,3602.2,9.12318128]
[1754315066134,0.061,3602.3,3602.2,4.47718128]
[1754315066335,0.061,3602.3,3602.2,8.01568128]
[1754315066935,0.061,3602.3,3602.2,9.12218128]
[1754315067862,0.061,3602.3,3602.2,4.47718128]
[1754315068145,0.061,3602.3,3602.2,9.12118128]
[1754315069017,0.1384,3603.0,3602.2,12.12118128]
[1754315069224,1.1591,3604.6,3603.7,2.77492577]
[1754315069433,1.1591,3604.6,3603.7,7.41792577]
[1754315069610,0.00588464,3604.9,3603.7,8.97982577]
[1754315069809,2.77989191,3604.9,3603.7,8.97982577]
[1754315070051,0.00588464,3604.9,3603.7,8.97982577]
[1754315070351,1.16498464,3604.9,3603.7,8.97982577]
[1754315070534,1.1591,3604.5,3603.7,7.41792577]
[1754315070924,3.93343129,3604.5,3603.7,7.41792577]
[1754315071142,0.00588464,3604.9,3603.7,7.41792577]
[1754315071143,0.00588464,3604.9,3604.1,2.77461779]
[1754315071315,0.00588464,3604.9,3604.1,7.41661779]
[1754315071515,0.00588464,3604.9,3604.1,8.99641779]
[1754315071825,0.14502702,3606.4,3604.4,3.55]
[1754315072025,0.14502702,3606.4,3605.2,2.7737678]
[1754315072026,0.02833763,3606.3,3605.2,2.7737678]
[1754315072238,1.15143763,3606.4,3604.5,1.5798]
[1754315072546,2.77300205,3606.2,3604.6,4.642]
[1754315072712,1.1231,3606.1,3604.6,4.642]
[1754315072923,2.77339779,3605.7,3604.8,2.774079]
[1754315073116,1.1231,3606.1,3604.9,0.4651]
[1754315073316,2.77384815,3605.1,3605.0,4.641]
[1754315073548,2.77400205,3604.9,3604.8,4.641]
[1754315073735,2.77400205,3604.9,3603.5,2.7750148]
[1754315073736,2.77417017,3604.7,3603.8,3.23993883]
[1754315073936,2.77369428,3605.3,3605.2,1.1231]
[1754315074138,0.55,3605.8,3603.9,4.35451309]
[1754315074342,2.77354042,3605.5,3603.9,1.5798]
[1754315074543,2.77392826,3605.0,3604.0,4.64]
[1754315074758,2.77459768,3604.2,3604.0,4.64]
[1754315075055,2.77459768,3604.2,3604.1,4.64]
[1754315075353,0.02833763,3604.7,3603.3,5.75365872]
[1754315075556,2.77489608,3603.8,3603.3,5.75365872]
[1754315075728,2.77515679,3603.4,3603.3,5.75365872]
[1754315075930,1.15143763,3604.2,3603.3,5.75365872]
[1754315076239,1.1231,3604.7,3603.3,12.75365872]
[1754315076443,2.77508739,3603.5,3603.3,12.75365872]
[1754315076671,2.77515679,3603.4,3603.3,12.75365872]
[1754315076845,2.77515679,3603.4,3603.3,7.0]
[1754315077040,3.89825679,3603.4,3603.3,7.0]
[1754315077243,2.77515679,3603.4,3603.3,7.0]
[1754315078977,2.77464326,3604.1,3603.3,7.0]
[1754315079182,2.91349136,3603.5,3603.3,7.0]
[1754315079478,2.91349136,3603.5,3603.4,4.639]
[1754315079669,2.77515679,3603.4,3603.3,7.0]
[1754315079856,2.77515679,3603.4,3603.3,11.638]
[1754315080053,2.9134898,3603.5,3603.3,11.638]
[1754315080240,2.77492577,3603.7,3603.3,11.638]
[1754315080445,2.77469553,3604.0,3603.4,1.5798]
[1754315080647,0.1384,3604.0,3603.5,0.1384]
[1754315080845,3.89732153,3604.7,3603.6,5.1031]
[1754315081061,1.1231,3604.7,3603.6,6.2178]
[1754315081259,1.1231,3605.1,3603.6,6.2178]
[1754315081461,2.7745995,3604.2,3603.6,6.2178]
[1754315081657,3.92528716,3605.1,3603.6,8.99279182]
[1754315081856,1.15143763,3605.1,3603.6,6.2178]
[1754315082151,2.77462167,3604.1,3603.6,6.2178]
[1754315082351,3.89719746,3604.8,3603.7,0.4651]
[1754315082961,1.1231,3605.3,3603.8,1.14244848]
[1754315083163,1.1231,3605.3,3603.9,0.4651]
[1754315083481,2.77403013,3604.9,3604.0,5.7527]
[1754315083685,2.77403013,3604.9,3604.2,2.77449274]
[1754315083888,1.1231,3605.7,3604.1,1.5798]
[1754315084055,2.77368209,3605.4,3604.3,4.35425191]
[1754315084249,1.1231,3606.0,3604.4,1.5798]
[1754315084477,2.77379089,3605.2,3604.5,4.637]
[1754315084984,2.77359416,3605.5,3604.5,7.41125507]
[1754315085153,2.77359416,3605.5,3604.8,2.77401153]
[1754315085349,2.77359416,3605.5,3604.9,4.637]
[1754315085698,2.7734635,3605.6,3605.5,1.4]
[1754315086052,3.8965635,3605.6,3605.5,1.4]
[1754315087094,0.43395402,3608.4,3605.6,5.546927]
[1754315087392,1.525,3608.0,3606.5,5.77277138]
[1754315087699,1.525,3608.0,3606.1,2.77303362]
[1754315087700,1.525,3608.0,3607.7,2.77179738]
[1754315087862,1.525,3608.0,3607.9,2.77169544]
[1754315088184,1.525,3608.0,3607.9,9.04649544]
[1754315088588,1e-08,3608.0,3607.9,4.35149544]
[1754315089154,1e-08,3608.0,3607.9,9.05949544]
[1754315089690,1e-08,3608.0,3607.9,9.06149544]
[1754315089875,1e-08,3608.0,3607.9,9.06349544]
[1754315090275,1e-08,3608.0,3607.9,2.77169544]
[1754315090474,1e-08,3608.0,3607.9,7.48269544]
[1754315090648,1e-08,3608.0,3607.9,2.77169544]
[1754315090848,1e-08,3608.0,3607.9,9.06149544]
[1754315091053,1e-08,3608.0,3607.9,9.19989544]
[1754315091886,1e-08,3608.0,3607.9,9.19689544]
[1754315092390,1e-08,3608.0,3607.9,9.19589544]
[1754315092593,1e-08,3608.0,3607.9,8.73079544]
[1754315092758,1e-08,3608.0,3607.9,7.61609544]
[1754315093157,1e-08,3608.0,3607.9,2.91009544]
[1754315093353,1e-08,3608.0,3607.9,9.19189544]
[1754315094305,1e-08,3608.0,3607.9,1.7182]
[1754315094461,1e-08,3608.0,3607.9,6.4162]
[1754315094806,1e-08,3608.0,3607.4,6.662]
[1754315094807,2.77531924,3608.4,3608.0,6.99999999]
[1754315095100,2.7715418,3608.1,3608.0,11.69999999]
[1754315095482,2.7715418,3608.1,3608.0,6.99999999]
[1754315095786,0.1384,3608.2,3608.0,6.99999999]
[1754315095988,0.1384,3608.2,3608.1,4.697]
[1754315096192,3.89456499,3608.2,3608.1,4.697]
[1754315096394,2.7715418,3608.1,3608.0,6.99999999]
[1754315096695,0.1384,3608.2,3608.0,9.77155457]
[1754315096859,0.004,3608.4,3608.1,6.4142]
[1754315097060,0.004,3608.4,3608.2,4.696]
[1754315097261,0.004,3608.4,3608.3,0.1384]
[1754315097459,0.004,3608.4,3608.3,2.90978818]
[1754315097682,0.004,3608.4,3608.3,0.1384]
[1754315097891,0.004,3608.4,3608.3,1.7182]
[1754315098094,0.004,3608.4,3608.3,4.51730206]
[1754315099073,0.00641642,3609.4,3609.3,2.77062034]
[1754315099276,0.00641642,3609.4,3609.3,7.46362034]
[1754315099599,0.00641642,3609.4,3609.3,4.8304]
[1754315099808,0.00641642,3609.4,3609.3,7.60102034]
[1754315100107,0.00641642,3609.4,3609.3,9.18082034]
[1754315100663,0.00641642,3609.4,3609.3,7.59902034]
[1754315100899,0.00641642,3609.4,3609.3,8.71372034]
[1754315101101,0.00641642,3609.4,3609.3,9.17882034]
[1754315101624,0.001,3609.8,3609.3,8.3752]
[1754315101768,0.001,3609.8,3609.5,2.77046682]
[1754315101972,0.001,3609.8,3609.7,2.77031332]
[1754315102172,0.001,3609.8,3609.7,2.93641645]
[1754315102383,1.28702049,3611.3,3610.7,2.76954444]
[1754315102384,0.17832049,3611.3,3610.7,2.76954444]
[1754315102709,0.17832049,3611.3,3610.0,2.77008224]
[1754315102710,0.17832049,3611.3,3610.3,1.195]
[1754315102884,0.17832049,3611.3,3610.4,4.702]
[1754315103088,0.17832049,3611.3,3610.5,1.6677]
[1754315103287,0.17832049,3611.3,3610.6,5.92369622]
[1754315103483,0.17832049,3611.3,3610.7,4.701]
[1754315103685,0.17832049,3611.3,3610.7,6.3687]
[1754315103888,1.96556863,3611.2,3611.1,2.76923928]
[1754315104183,1.96556863,3611.2,3611.1,9.15093928]
[1754315104382,1.22848039,3611.2,3611.1,9.15093928]
[1754315104585,0.80619025,3611.2,3611.1,9.15093928]
[1754315104883,0.17832049,3611.3,3611.2,2.7691626]
[1754315105095,0.17832049,3611.3,3611.2,9.1508626]
[1754315105607,0.0028,3613.2,3611.3,3.55]
[1754315105808,0.0028,3613.2,3611.3,1.6677]
[1754315106011,0.0028,3613.2,3611.4,1.6677]
[1754315106176,0.0028,3613.2,3611.5,4.716]
[1754315106177,2.77045453,3613.2,3611.5,4.716]
[1754315106378,0.0028,3613.2,3612.2,2.76838747]
[1754315106593,2.7677865,3613.0,3612.3,4.719]
[1754315106803,0.0028,3613.2,3612.1,2.76844865]
[1754315107007,0.0028,3613.2,3612.2,5.94068395]
[1754315107306,0.0028,3613.2,3612.2,1.6677]
[1754315107508,2.7677064,3613.1,3612.3,4.717]
[1754315107711,2.77046713,3613.2,3612.4,4.719]
[1754315107922,0.0028,3613.2,3612.5,4.718]
[1754315108117,0.0028,3613.2,3611.8,1.6677]
[1754315108313,2.76799216,3612.8,3611.8,1.6677]
[1754315108476,0.0028,3613.2,3611.9,4.719]
[1754315108677,0.0028,3613.2,3611.8,1.6677]
[1754315108678,2.76796207,3612.8,3612.0,2.76849752]
[1754315108989,2.76805089,3612.7,3612.1,4.717]
[1754315109233,2.76793622,3612.8,3612.2,4.716]
[1754315109381,2.76804815,3612.7,3612.2,4.716]
[1754315109718,2.76793428,3612.9,3612.2,5.911]
[1754315109922,2.76795676,3612.8,3612.2,5.911]
[1754315110124,2.76803115,3612.7,3612.3,4.714]
[1754315110321,1.1115,3613.2,3612.0,2.76847412]
[1754315110521,1.1115,3613.2,3612.1,4.712]
[1754315110809,2.76777426,3613.1,3612.2,2.76834034]
[1754315110973,1.1087,3613.0,3611.4,0.4727]
[1754315111178,0.02833763,3612.9,3611.5,4.709]
[1754315111378,2.7685302,3612.1,3611.5,4.709]
[1754315111611,1.1087,3612.0,3611.0,6.655]
[1754315111822,1.13703763,3612.0,3611.2,4.709]
[1754315112118,1.1087,3612.0,3611.0,6.655]
[1754315112316,1.1087,3612.0,3609.2,2.77068628]
[1754315112317,0.4511,3611.9,3610.0,1.6677]
[1754315112517,2.90784566,3610.9,3610.4,0.1384]
[1754315112683,3.87817478,3610.8,3610.3,0.1384]
[1754315112883,1.1087,3612.1,3610.4,6.3757]
[1754315113096,2.76912514,3611.3,3610.4,4.708]
[1754315113306,1.1087,3611.2,3610.5,4.714]
[1754315113521,1.1087,3611.7,3610.6,0.02769622]
[1754315113826,2.76852365,3612.1,3611.3,2.76908018]
[1754315113982,1.1087,3613.0,3610.7,1.6677]
[1754315114184,1.5598,3612.9,3610.8,6.3877]
[1754315114389,1.58813763,3612.8,3610.8,6.3877]
[1754315114690,2.76809864,3612.6,3611.8,2.76868417]
[1754315115002,2.76809864,3612.6,3610.9,1.69539392]
[1754315115003,1.1087,3612.7,3612.0,2.76854604]
[1754315115198,1.1087,3612.7,3611.9,4.724]
[1754315115508,2.76809386,3612.6,3611.9,4.724]
[1754315115707,1.1087,3612.5,3611.9,4.724]
[1754315115906,0.0028,3613.2,3611.9,4.724]
[1754315116223,0.0028,3613.2,3610.6,2.76961744]
[1754315116224,2.76852555,3612.1,3611.6,4.722]
[1754315116524,2.76870258,3611.8,3611.7,4.724]
[1754315116847,2.76870258,3611.8,3610.2,3.60172238]
[1754315116848,2.76916056,3611.3,3611.1,4.722]
[1754315117048,2.76884358,3611.7,3611.1,4.722]
[1754315117210,2.76902544,3611.4,3611.1,4.722]
[1754315117523,2.76902544,3611.4,3610.3,2.76982701]
[1754315117524,2.76925018,3611.1,3610.3,2.76982701]
[1754315117753,2.76939267,3610.9,3609.6,3.60233007]
[1754315118021,2.76975537,3610.5,3609.7,4.722]
[1754315118226,1.1087,3611.0,3609.8,2.77018595]
[1754315118429,1.1087,3612.0,3609.9,1.69540159]
[1754315118600,2.76870258,3611.8,3610.0,4.728]
[1754315118803,1.58813763,3611.9,3609.2,3.02770697]
[1754315118804,1.1087,3611.7,3610.1,1.6677]
[1754315119014,1.1087,3611.7,3610.2,6.4017]
[1754315119215,0.4511,3611.9,3610.9,2.76936933]
[1754315119390,0.4511,3611.9,3611.0,2.76929359]
[1754315119590,3.87717809,3612.1,3611.0,2.76929359]
[1754315119924,1.1087,3612.1,3611.0,7.0]
[1754315120221,2.76855043,3612.0,3611.1,2.76923928]
[1754315120521,1.1087,3612.1,3611.0,11.737]
[1754315120822,2.76818368,3612.5,3611.6,2.76881597]
[1754315121023,2.76803024,3612.7,3611.7,4.733]
[1754315121184,0.03113763,3613.2,3612.5,0.9]
[1754315121389,2.76785961,3612.9,3612.5,0.9]
[1754315121599,1.1087,3612.9,3612.5,0.9]
[1754315122130,0.4539,3613.2,3612.5,0.9]
[1754315122131,0.0028,3613.2,3612.5,0.9]
[1754315122628,2.76784983,3613.0,3612.5,0.9]
[1754315122940,0.1384,3613.1,3612.6,0.1384]
[1754315123132,0.1384,3613.1,3612.7,4.727]
[1754315123339,0.0028,3613.2,3612.9,2.76783616]
[1754315123492,0.0028,3613.2,3612.9,0.1384]
[1754315123842,0.0028,3613.2,3612.7,7.49501245]
[1754315123843,0.1384,3613.0,3612.7,4.727]
[1754315124142,0.0028,3613.2,3613.1,2.9061064]
[1754315124353,0.0028,3613.2,3613.1,2.7677064]
[1754315124556,0.0028,3613.2,3613.1,4.4354064]
[1754315124712,0.0028,3613.2,3613.1,4.5738064]
[1754315125025,0.0028,3613.2,3613.1,9.3058064]
[1754315125752,0.0028,3613.2,3613.1,16.3058064]
[1754315125929,0.0028,3613.2,3613.1,11.5738064]
[1754315126442,0.0028,3613.2,3613.1,14.6331064]
[1754315126642,0.0028,3613.2,3613.1,16.3008064]
[1754315127208,0.0028,3613.2,3613.1,9.3008064]
[1754315127441,0.004,3614.1,3613.1,9.3008064]
[1754315127442,2.43757983,3615.6,3613.1,1.81849269]
[1754315127644,1.5598,3615.2,3613.2,13.0467]
[1754315127832,3.0,3615.0,3613.3,4.73]
[1754315128148,5.76591182,3615.5,3613.2,8.3167]
[1754315128149,3.0,3614.8,3613.2,8.3167]
[1754315128338,2.76677749,3614.4,3613.4,4.732]
[1754315128509,0.4511,3614.7,3613.4,4.732]
[1754315128709,1.1087,3614.3,3613.4,4.732]
[1754315128909,1.1087,3614.3,3613.5,2.76740002]
[1754315129230,1.5598,3614.7,3613.8,2.76716557]
[1754315129432,4.32629486,3614.7,3613.9,4.732]
[1754315129634,1.5598,3614.7,3613.9,4.732]
[1754315130035,1.1087,3614.7,3613.9,4.732]
[1754315130233,3.87520513,3614.7,3613.9,4.732]
[1754315130622,2.76693848,3614.2,3613.7,4.735]
[1754315130823,1.5598,3614.1,3612.7,1.6677]
[1754315131028,1.5598,3614.1,3612.8,7.5029305]
[1754315131029,3.87572452,3614.0,3612.8,7.5029305]
[1754315131209,3.0,3614.7,3612.9,1.35573776]
[1754315131210,1.0939,3614.5,3612.9,1.35573776]
[1754315131548,1.0939,3615.0,3613.0,3.38165565]
[1754315131770,1.0939,3615.0,3613.1,0.15100808]
[1754315131922,0.4308,3615.2,3613.1,0.15100808]
[1754315131923,0.4308,3615.2,3614.2,2.76678857]
[1754315132124,1.0939,3615.1,3613.8,4.736]
[1754315132750,1.0939,3615.1,3613.9,1.2047]
[1754315133008,0.17703761,3615.3,3614.1,2.76692841]
[1754315133116,0.17703761,3615.3,3614.6,2.76651774]
[1754315133620,0.17703761,3615.3,3614.2,1.2047]
[1754315133621,2.76645987,3614.8,3613.9,2.76708618]
[1754315133853,1.0939,3615.2,3613.9,4.736]
[1754315134039,1.5247,3615.1,3613.9,4.736]
[1754315134221,14.17113809,3614.9,3611.2,2.76914506]
[1754315134571,2.76801284,3612.7,3612.6,0.15106084]
[1754315134716,2.76808946,3612.6,3611.4,6.4036]
[1754315135050,2.76808946,3612.6,3611.4,5.1989]
[1754315135222,2.76808946,3612.6,3611.8,0.4629]
[1754315135432,13.62113809,3614.2,3612.5,1.05115289]
[1754315135611,2.76671093,3614.4,3612.6,0.15115289]
[1754315135979,2.76801284,3612.7,3612.6,0.15115289]
[1754315136421,2.76808946,3612.6,3612.5,0.9]
[1754315136620,33.61018946,3612.6,3612.5,0.9]
[1754315136828,3.48828946,3612.6,3612.5,0.9]
[1754315137217,3.48828946,3612.6,3612.5,1e-08]
[1754315137218,6.61018946,3612.6,3612.5,1e-08]
[1754315137552,37.29858946,3612.6,3612.5,1e-08]
[1754315137930,37.21708946,3612.6,3612.5,1e-08]
[1754315138118,42.08298946,3612.6,3612.5,1e-08]
[1754315138320,42.08198946,3612.6,3612.5,1e-08]
[1754315138614,55.70312755,3612.6,3612.5,1e-08]
[1754315139011,52.93903809,3612.6,3610.3,0.1513557]
[1754315139217,2.76995403,3610.2,3609.6,0.1513557]
[1754315139449,2.76948722,3610.8,3609.9,0.4629]
[1754315139657,0.1384,3610.7,3610.0,1.3560557]
[1754315139872,2.76817341,3612.5,3610.6,2.76962277]
[1754315139873,5.76892096,3611.6,3610.6,2.76962277]
[1754315140162,0.1384,3611.2,3610.8,2.76945816]
[1754315140365,0.1384,3611.2,3610.9,1.6676]
[1754315140572,0.1384,3611.5,3611.0,1.6676]